fUSD/lending_fUSD_20240422
["ID","MTS","AMOUNT","RATE_DAILY","PERIOD"]
[323209687,1713817847073,-500.0,0.00013698,2]
[323209688,1713817847082,-500.0,0.00013698,2]
[323209689,1713817847091,-500.2354381,0.00013698,2]
[323209690,1713817847100,-1611.58,0.00013698,2]
[323209691,1713817847109,-500.0,0.00013698,2]
[323209692,1713817847119,-500.98548921,0.00013698,2]
[323209693,1713817847128,-500.0,0.00013698,2]
[323209694,1713817847137,-500.0,0.00013698,2]
[323209695,1713817847147,-500.0,0.00013698,2]
[323209696,1713817847157,-710.31,0.00013698,2]
[323209697,1713817847167,-503.20197,0.00013698,2]
[323209698,1713817847178,-500.0,0.00013698,2]
[323209699,1713817847189,-941.73,0.00013698,2]
[323209700,1713817847198,-500.0,0.00013698,2]
[323209701,1713817847235,-500.46653296,0.00013698,2]
[323209702,1713817847245,-585.05,0.00013698,2]
[323209703,1713817847256,-500.0,0.00013698,2]
[323209704,1713817847267,-1122.42,0.00013698,2]
[323209705,1713817847278,-500.0,0.00013698,2]
[323209706,1713817847289,-758.68,0.00013698,2]
[323209707,1713817847300,-500.0,0.00013698,2]
[323209708,1713817847311,-302.29223469,0.00013698,2]
[323209709,1713817847322,-844.75,0.00013698,2]
[323209710,1713817847331,-500.0,0.00013698,2]
[323209711,1713817847340,-500.0,0.00013698,2]
[323209712,1713817847348,-500.0,0.00013698,2]
[323209713,1713817847358,-500.0,0.00013698,2]
[323209714,1713817847367,-531.49604354,0.00013698,2]
[323209715,1713817847376,-500.0,0.00013698,2]
[323209716,1713817847385,-500.0,0.00013698,2]
[323209717,1713817847394,-500.69653465,0.00013698,2]
[323209718,1713817847404,-1156.31,0.00013698,2]
[323209719,1713817847413,-905.56,0.00013698,2]
[323209720,1713817847423,-387.86639819,0.00013698,2]
[323209721,1713817847433,-1225.61,0.00013698,2]
[323209722,1713817847443,-500.0,0.00013698,2]
[323209723,1713817847452,-500.0,0.00013698,2]
[323209724,1713817847461,-500.0,0.00013698,2]
[323209725,1713817847470,-501.68583968,0.00013698,2]
[323209726,1713817847481,-762.49,0.00013698,2]
[323209727,1713817847491,-580.72,0.00013698,2]
[323209728,1713817847502,-500.0,0.00013698,2]
[323209729,1713817847512,-1207.15,0.00013698,2]
[323209730,1713817847522,-500.0,0.00013698,2]
[323209731,1713817847531,-500.0,0.00013698,2]
[323209732,1713817847542,-500.0,0.00013698,2]
[323209733,1713817847552,-518.32019943,0.00013698,2]
[323209734,1713817847562,-847.4,0.00013698,2]
[323209735,1713817847573,-500.0,0.00013698,2]
[323209736,1713817847583,-1458.35,0.00013698,2]
[323209737,1713817847593,-500.0,0.00013698,2]
[323209738,1713817847603,-1346.71,0.00013698,2]
[323209739,1713817847612,-500.0,0.00013698,2]
[323209740,1713817847624,-889.65,0.00013698,2]
[323209741,1713817847634,-500.0,0.00013698,2]
[323209742,1713817847644,-501.73883703,0.00013698,2]
[323209743,1713817847654,-1857.12,0.00013698,2]
[323209744,1713817847666,-500.0,0.00013698,2]
[323209745,1713817847678,-500.0,0.00013698,2]
[323209746,1713817847691,-500.0,0.00013698,2]
[323209747,1713817847702,-500.0,0.00013698,2]
[323209748,1713817847714,-500.0,0.00013698,2]
[323209749,1713817847724,-500.0,0.00013698,2]
[323209750,1713817847737,-500.0,0.00013698,2]
[323209751,1713817847748,-373.52,0.00013698,2]
[323209752,1713817847758,-500.0,0.00013698,2]
[323209753,1713817847771,-500.0,0.00013698,2]
[323209754,1713817847783,-797.75,0.00013698,2]
[323209755,1713817847793,-1384.06,0.00013698,2]
[323209756,1713817847804,-838.1,0.00013698,2]
[323209757,1713817847813,-500.0,0.00013698,2]
[323209758,1713817847823,-666.81,0.00013698,2]
[323209759,1713817847832,-500.0,0.00013698,2]
[323209760,1713817847841,-508.35969409,0.00013698,2]
[323209761,1713817847855,-500.0,0.00013698,2]
[323209762,1713817847866,-502.16247993,0.00013698,2]
[323209763,1713817847876,-500.0,0.00013698,2]
[323209764,1713817847885,-562.19,0.00013698,2]
[323209765,1713817847896,-515.46,0.00013698,2]
[323209766,1713817847906,-500.0,0.00013698,2]
[323209767,1713817847917,-500.0,0.00013698,2]
[323209768,1713817847929,-327.76026893,0.00013698,2]
[323209769,1713817847941,-500.0,0.00013698,2]
[323209770,1713817847950,-500.0,0.00013698,2]
[323209771,1713817847960,-500.0,0.00013698,2]
[323209772,1713817847969,-500.0,0.00013698,2]
[323209773,1713817847979,-500.0,0.00013698,2]
[323209774,1713817847989,-1234.42,0.00013698,2]
[323209775,1713817847998,-500.0,0.00013698,2]
[323209776,1713817848007,-500.0,0.00013698,2]
[323209777,1713817848016,-1329.82,0.00013698,2]
[323209778,1713817848026,-500.0,0.00013698,2]
[323209779,1713817848036,-982.2,0.00013698,2]
[323209780,1713817848046,-501.58629282,0.00013698,2]
[323209781,1713817848055,-2343.61,0.00013698,2]
[323209782,1713817848064,-500.0,0.00013698,2]
[323209783,1713817848074,-502.04330784,0.00013698,2]
[323209784,1713817848084,-1458.64,0.00013698,2]
[323209785,1713817848095,-500.0,0.00013698,2]
[323209786,1713817848105,-847.85,0.00013698,2]
[323209787,1713817848115,-500.0,0.00013698,2]
[323209788,1713817848124,-503.34186279,0.00013698,2]
[323209789,1713817848134,-1545.79,0.00013698,2]
[323209790,1713817848143,-500.0,0.00013698,2]
[323209791,1713817848153,-500.0,0.00013698,2]
[323209792,1713817848164,-500.0,0.00013698,2]
[323209793,1713817848174,-3597.84,0.00013698,2]
[323209794,1713817848184,-500.0,0.00013698,2]
[323209795,1713817848194,-715.1,0.00013698,2]
[323209796,1713817848203,-500.0,0.00013698,2]
[323209797,1713817848213,-1733.17,0.00013698,2]
[323209798,1713817848222,-1489.81,0.00013698,2]
[323209799,1713817848231,-500.0,0.00013698,2]
[323209800,1713817848241,-500.0,0.00013698,2]
[323209801,1713817848251,-1331.5,0.00013698,2]
[323209802,1713817848261,-500.0,0.00013698,2]
[323209803,1713817848271,-500.0,0.00013698,2]
[323209804,1713817848281,-500.0,0.00013698,2]
[323209805,1713817848290,-1524.01,0.00013698,2]
[323209806,1713817848299,-500.0,0.00013698,2]
[323209807,1713817848308,-500.0,0.00013698,2]
[323209808,1713817848318,-1445.52,0.00013698,2]
[323209809,1713817848328,-500.0,0.00013698,2]
[323209810,1713817848340,-500.0,0.00013698,2]
[323209811,1713817848350,-521.23,0.00013698,2]
[323209812,1713817848361,-500.0,0.00013698,2]
[323209813,1713817848372,-500.0,0.00013698,2]
[323209814,1713817848381,-500.0,0.00013698,2]
[323209815,1713817848392,-1681.34,0.00013698,2]
[323209816,1713817848403,-500.0,0.00013698,2]
[323209817,1713817848413,-500.0,0.00013698,2]
[323209818,1713817848422,-501.84597943,0.00013698,2]
[323209819,1713817848431,-1162.45,0.00013698,2]
[323209820,1713817848442,-500.0,0.00013698,2]
[323209821,1713817848453,-1395.37,0.00013698,2]
[323209822,1713817848463,-619.96,0.00013698,2]
[323209823,1713817848473,-255.26,0.00013698,2]
[323209824,1713817848482,-500.0,0.00013698,2]
[323209825,1713817848492,-500.76212613,0.00013698,2]
[323209826,1713817848501,-850.51,0.00013698,2]
[323209827,1713817848510,-500.0,0.00013698,2]
[323209828,1713817848518,-500.0,0.00013698,2]
[323209829,1713817848528,-500.0,0.00013698,2]
[323209830,1713817848537,-500.0,0.00013698,2]
[323209831,1713817848546,-651.79,0.00013698,2]
[323209832,1713817848556,-1280.9,0.00013698,2]
[323209833,1713817848565,-261.95744676,0.00013698,2]
[323209834,1713817848575,-500.54388618,0.00013698,2]
[323209835,1713817848584,-500.0,0.00013698,2]
[323209836,1713817848593,-500.0,0.00013698,2]
[323209837,1713817848603,-501.31986104,0.00013698,2]
[323209838,1713817848612,-1459.47,0.00013698,2]
[323209839,1713817848621,-500.0,0.00013698,2]
[323209840,1713817848630,-500.0,0.00013698,2]
[323209841,1713817848639,-500.9981401,0.00013698,2]
[323209842,1713817848648,-534.9,0.00013698,2]
[323209843,1713817848657,-551.68291386,0.00013698,2]
[323209844,1713817848666,-500.0,0.00013698,2]
[323209845,1713817848675,-500.0,0.00013698,2]
[323209846,1713817848684,-500.0,0.00013698,2]
[323209847,1713817848695,-538.6,0.00013698,2]
[323209848,1713817848704,-500.32013462,0.00013698,2]
[323209849,1713817848713,-500.0,0.00013698,2]
[323209850,1713817848722,-1610.79,0.00013698,2]
[323209851,1713817848731,-500.0,0.00013698,2]
[323209852,1713817848741,-502.37751476,0.00013698,2]
[323209853,1713817848750,-500.88095536,0.00013698,2]
[323209854,1713817848760,-500.0,0.00013698,2]
[323209855,1713817848770,-500.0,0.00013698,2]
[323209856,1713817848779,-500.0,0.00013698,2]
[323209857,1713817848790,-500.0,0.00013698,2]
[323209858,1713817848800,-500.0,0.00013698,2]
[323209859,1713817848809,-500.0,0.00013698,2]
[323209860,1713817848818,-537.01,0.00013698,2]
[323209861,1713817848828,-500.0,0.00013698,2]
[323209862,1713817848838,-514.88,0.00013698,2]
[323209863,1713817848851,-500.0,0.00013698,2]
[323209864,1713817848861,-1363.17,0.00013698,2]
[323209865,1713817848872,-500.0,0.00013698,2]
[323209866,1713817848882,-786.16,0.00013698,2]
[323209867,1713817848893,-500.0,0.00013698,2]
[323209868,1713817848906,-500.0,0.00013698,2]
[323209869,1713817848919,-500.0,0.00013698,2]
[323209870,1713817848929,-746.38,0.00013698,2]
[323209871,1713817848941,-500.0,0.00013698,2]
[323209872,1713817848952,-788.48,0.00013698,2]
[323209873,1713817848962,-500.0,0.00013698,2]
[323209874,1713817848971,-489.51812137,0.00013698,2]
[323209875,1713817848981,-1371.5,0.00013698,2]
[323209876,1713817848990,-500.0,0.00013698,2]
[323209877,1713817849001,-572.35,0.00013698,2]
[323209878,1713817849012,-500.0,0.00013698,2]
[323209879,1713817849021,-1639.44,0.00013698,2]
[323209880,1713817849030,-500.0,0.00013698,2]
[323209881,1713817849041,-1080.61,0.00013698,2]
[323209882,1713817849051,-500.0,0.00013698,2]
[323209883,1713817849061,-927.48,0.00013698,2]
[323209884,1713817849071,-500.0,0.00013698,2]
[323209885,1713817849081,-500.0,0.00013698,2]
[323209886,1713817849091,-500.0,0.00013698,2]
[323209887,1713817849100,-1053.33,0.00013698,2]
[323209888,1713817849111,-500.0,0.00013698,2]
[323209889,1713817849121,-500.0,0.00013698,2]
[323209890,1713817849130,-2417.44,0.00013698,2]
[323209891,1713817849140,-500.0,0.00013698,2]
[323209892,1713817849150,-820.45,0.00013698,2]
[323209893,1713817849160,-500.0,0.00013698,2]
[323209894,1713817849170,-500.0,0.00013698,2]
[323209895,1713817849180,-500.0,0.00013698,2]
[323209896,1713817849191,-500.0,0.00013698,2]
[323209897,1713817849202,-500.0,0.00013698,2]
[323209898,1713817849212,-500.0,0.00013698,2]
[323209899,1713817849221,-500.0,0.00013698,2]
[323209900,1713817849231,-616.6,0.00013698,2]
[323209901,1713817849242,-1496.35,0.00013698,2]
[323209902,1713817849252,-500.0,0.00013698,2]
[323209903,1713817849262,-1901.34,0.00013698,2]
[323209904,1713817849272,-501.28677746,0.00013698,2]
[323209905,1713817849282,-500.0,0.00013698,2]
[323209906,1713817849292,-1504.69,0.00013698,2]
[323209907,1713817849302,-531.85,0.00013698,2]
[323209908,1713817849312,-500.0,0.00013698,2]
[323209909,1713817849322,-500.0,0.00013698,2]
[323209910,1713817849333,-500.0,0.00013698,2]
[323209911,1713817849343,-549.16,0.00013698,2]
[323209912,1713817849354,-500.0,0.00013698,2]
[323209913,1713817849364,-1164.49,0.00013698,2]
[323209914,1713817849375,-1596.3,0.00013698,2]
[323209915,1713817849385,-1438.6,0.00013698,2]
[323209916,1713817849396,-500.71685016,0.00013698,2]
[323209917,1713817849406,-500.0,0.00013698,2]
[323209918,1713817849416,-500.0,0.00013698,2]
[323209919,1713817849425,-500.0,0.00013698,2]
[323209920,1713817849435,-500.0,0.00013698,2]
[323209921,1713817849449,-500.0,0.00013698,2]
[323209922,1713817849459,-1493.64,0.00013698,2]
[323209923,1713817849468,-693.72,0.00013698,2]
[323209924,1713817849478,-500.86182727,0.00013698,2]
[323209925,1713817849487,-889.74,0.00013698,2]
[323209926,1713817849497,-500.0,0.00013698,2]
[323209927,1713817849507,-500.0,0.00013698,2]
[323209928,1713817849518,-1296.17,0.00013698,2]
[323209929,1713817849528,-500.0,0.00013698,2]
[323209930,1713817849538,-500.0,0.00013698,2]
[323209931,1713817849547,-1184.52,0.00013698,2]
[323209932,1713817849556,-1024.32,0.00013698,2]
[323209933,1713817849565,-675.02,0.00013698,2]
[323209934,1713817849573,-1243.7,0.00013698,2]
[323209935,1713817849583,-1364.07,0.00013698,2]
[323209936,1713817849592,-2073.0,0.00013698,2]
[323209937,1713817849601,-1245.39,0.00013698,2]
[323209938,1713817849611,-500.0,0.00013698,2]
[323209939,1713817849621,-500.0,0.00013698,2]
[323209940,1713817849630,-500.0,0.00013698,2]
[323209941,1713817849639,-500.0,0.00013698,2]
[323209942,1713817849650,-500.0,0.00013698,2]
[323209943,1713817849659,-501.26941544,0.00013698,2]
[323209944,1713817849670,-500.0,0.00013698,2]
[323209945,1713817849680,-500.0,0.00013698,2]
[323209946,1713817849691,-500.0,0.00013698,2]
[323209947,1713817849700,-500.0,0.00013698,2]
[323209948,1713817849709,-500.0,0.00013698,2]
[323209949,1713817849719,-500.0,0.00013698,2]
[323209950,1713817849729,-1343.23,0.00013698,2]
[323209951,1713817849741,-500.0,0.00013698,2]
[323209952,1713817849750,-500.35271642,0.00013698,2]
[323209953,1713817849761,-785.15,0.00013698,2]
[323209954,1713817849771,-500.0,0.00013698,2]
[323209955,1713817849782,-500.0,0.00013698,2]
[323209956,1713817849793,-499.61700398,0.00013698,2]
[323209957,1713817849804,-1663.91,0.00013698,2]
[323209958,1713817849815,-1627.92,0.00013698,2]
[323209959,1713817849826,-500.0,0.00013698,2]
[323209960,1713817849837,-1215.57,0.00013698,2]
[323209961,1713817849852,-562.47621766,0.00013698,2]
[323209962,1713817849864,-500.0,0.00013698,2]
[323209963,1713817849874,-500.0,0.00013698,2]
[323209964,1713817849886,-500.0,0.00013698,2]
[323209965,1713817849896,-500.0,0.00013698,2]
[323209966,1713817849907,-500.0,0.00013698,2]
[323209967,1713817849920,-1013.21,0.00013698,2]
[323209968,1713817849933,-500.0,0.00013698,2]
[323209969,1713817849947,-500.0,0.00013698,2]
[323209970,1713817850212,-1167.1,0.00013698,2]
[323209971,1713817850222,-500.0,0.00013698,2]
[323209972,1713817850233,-500.0,0.00013698,2]
[323209973,1713817850243,-500.0,0.00013698,2]
[323209974,1713817850253,-781.7,0.00013698,2]
[323209975,1713817850262,-1496.62,0.00013698,2]
[323209976,1713817850272,-500.39565227,0.00013698,2]
[323209977,1713817850282,-1291.68,0.00013698,2]
[323209978,1713817850291,-1208.61,0.00013698,2]
[323209979,1713817850301,-279.71944,0.00013698,2]
[323209980,1713817850311,-500.0,0.00013698,2]
[323209981,1713817850320,-556.62290668,0.00013698,2]
[323209982,1713817850330,-500.0,0.00013698,2]
[323209983,1713817850340,-500.0,0.00013698,2]
[323209984,1713817850350,-500.0,0.00013698,2]
[323209985,1713817850359,-500.0,0.00013698,2]
[323209986,1713817850369,-636.48,0.00013698,2]
[323209987,1713817850379,-500.0,0.00013698,2]
[323209988,1713817850388,-979.58,0.00013698,2]
[323209989,1713817850397,-500.0,0.00013698,2]
[323209990,1713817850407,-500.0,0.00013698,2]
[323209991,1713817850417,-751.72,0.00013698,2]
[323209992,1713817850426,-500.0,0.00013698,2]
[323209993,1713817850436,-1192.84,0.00013698,2]
[323209994,1713817850449,-507.91,0.00013698,2]
[323209995,1713817850459,-518.39340991,0.00013698,2]
[323209996,1713817850468,-1367.4,0.00013698,2]
[323209997,1713817850477,-1643.75,0.00013698,2]
[323209998,1713817850487,-1037.47,0.00013698,2]
[323209999,1713817850498,-525.05,0.00013698,2]
[323210000,1713817850508,-535.15,0.00013698,2]
[323210001,1713817850519,-500.0,0.00013698,2]
[323210002,1713817850530,-1478.09,0.00013698,2]
[323210003,1713817850540,-500.0,0.00013698,2]
[323210004,1713817850550,-500.0,0.00013698,2]
[323210005,1713817850560,-500.0,0.00013698,2]
[323210006,1713817850570,-504.89,0.00013698,2]
[323210007,1713817850580,-500.0,0.00013698,2]
[323210008,1713817850590,-500.0,0.00013698,2]
[323210009,1713817850600,-500.0,0.00013698,2]
[323210010,1713817850610,-1198.94,0.00013698,2]
[323210011,1713817850620,-627.98,0.00013698,2]
[323210012,1713817850630,-1578.31,0.00013698,2]
[323210013,1713817850640,-849.45,0.00013698,2]
[323210014,1713817850650,-2383.31,0.00013698,2]
[323210015,1713817850660,-500.0,0.00013698,2]
[323210016,1713817850670,-500.0,0.00013698,2]
[323210017,1713817850681,-500.0,0.00013698,2]
[323210018,1713817850694,-500.0,0.00013698,2]
[323210019,1713817850704,-2746.92,0.00013698,2]
[323210020,1713817850715,-500.0,0.00013698,2]
[323210021,1713817850725,-500.0,0.00013698,2]
[323210022,1713817850736,-500.0,0.00013698,2]
[323210023,1713817850747,-500.0,0.00013698,2]
[323210024,1713817850758,-1045.49,0.00013698,2]
[323210025,1713817850768,-500.0,0.00013698,2]
[323210026,1713817850778,-1276.4,0.00013698,2]
[323210027,1713817850788,-1445.62,0.00013698,2]
[323210028,1713817850798,-500.0,0.00013698,2]
[323210029,1713817850808,-972.68851885,0.00013698,2]
[323210030,1713817850817,-1072.72,0.00013698,2]
[323210031,1713817850829,-1106.72,0.00013698,2]
[323210032,1713817850839,-500.0,0.00013698,2]
[323210033,1713817850853,-1533.64,0.00013698,2]
[323210034,1713817850863,-163.04202415,0.00013698,2]
[323210035,1713817850874,-500.0,0.00013698,2]
[323210036,1713817850886,-500.0,0.00013698,2]
[323210037,1713817850895,-3284.68,0.00013698,2]
[323210038,1713817850905,-500.0,0.00013698,2]
[323210039,1713817850917,-500.0,0.00013698,2]
[323210040,1713817850928,-2296.08,0.00013698,2]
[323210041,1713817850939,-851.02,0.00013698,2]
[323210042,1713817850949,-500.0,0.00013698,2]
[323210043,1713817850958,-500.0,0.00013698,2]
[323210044,1713817850969,-788.12,0.00013698,2]
[323210045,1713817850979,-2404.29,0.00013698,2]
[323210046,1713817850989,-500.0,0.00013698,2]
[323210047,1713817850999,-500.0,0.00013698,2]
[323210048,1713817851009,-1657.26,0.00013698,2]
[323210049,1713817851019,-500.0,0.00013698,2]
[323210050,1713817851029,-500.0,0.00013698,2]
[323210051,1713817851039,-500.0,0.00013698,2]
[323210052,1713817851049,-2538.83,0.00013698,2]
[323210053,1713817851060,-500.0,0.00013698,2]
[323210054,1713817851069,-500.0,0.00013698,2]
[323210055,1713817851079,-500.0,0.00013698,2]
[323210056,1713817851089,-1596.02,0.00013698,2]
[323210057,1713817851098,-552.91,0.00013698,2]
[323210058,1713817851109,-500.0,0.00013698,2]
[323210059,1713817851120,-500.0,0.00013698,2]
[323210060,1713817851129,-174.68542259,0.00013698,2]
[323210061,1713817851139,-1577.46,0.00013698,2]
[323210062,1713817851150,-500.0,0.00013698,2]
[323210063,1713817851159,-1894.81,0.00013698,2]
[323210064,1713817851169,-2000.81,0.00013698,2]
[323210065,1713817851179,-500.0,0.00013698,2]
[323210066,1713817851189,-1468.28,0.00013698,2]
[323210067,1713817851199,-595.04,0.00013698,2]
[323210068,1713817851209,-1219.08,0.00013698,2]
[323210069,1713817851219,-881.21,0.00013698,2]
[323210070,1713817851229,-500.0,0.00013698,2]
[323210071,1713817851240,-533.19,0.00013698,2]
[323210072,1713817851251,-2218.86,0.00013698,2]
[323210073,1713817851261,-500.0,0.00013698,2]
[323210074,1713817851272,-500.0,0.00013698,2]
[323210075,1713817851281,-500.0,0.00013698,2]
[323210076,1713817851291,-934.67,0.00013698,2]
[323210077,1713817851301,-525.62,0.00013698,2]
[323210078,1713817851311,-526.34,0.00013698,2]
[323210079,1713817851322,-500.0,0.00013698,2]
[323210080,1713817851332,-500.0,0.00013698,2]
[323210081,1713817851341,-500.0,0.00013698,2]
[323210082,1713817851352,-702.91,0.00013698,2]
[323210083,1713817851361,-548.67,0.00013698,2]
[323210084,1713817851370,-3676.74,0.00013698,2]
[323210085,1713817851380,-500.0,0.00013698,2]
[323210086,1713817851389,-500.0,0.00013698,2]
[323210087,1713817851400,-543.39056654,0.00013698,2]
[323210088,1713817851409,-500.0,0.00013698,2]
[323210089,1713817851418,-500.0,0.00013698,2]
[323210090,1713817851427,-500.0,0.00013698,2]
[323210091,1713817851438,-502.38741847,0.00013698,2]
[323210092,1713817851447,-500.0,0.00013698,2]
[323210093,1713817851457,-2497.52,0.00013698,2]
[323210094,1713817851467,-1527.36,0.00013698,2]
[323210095,1713817851477,-1077.98,0.00013698,2]
[323210096,1713817851487,-1214.09,0.00013698,2]
[323210097,1713817851498,-960.51,0.00013698,2]
[323210098,1713817851508,-500.0,0.00013698,2]
[323210099,1713817851518,-1969.14,0.00013698,2]
[323210100,1713817851531,-500.0,0.00013698,2]
[323210101,1713817851541,-500.0,0.00013698,2]
[323210102,1713817851552,-1099.35,0.00013698,2]
[323210103,1713817851562,-500.0,0.00013698,2]
[323210104,1713817851572,-1706.31,0.00013698,2]
[323210105,1713817851582,-1214.51,0.00013698,2]
[323210106,1713817851592,-837.97,0.00013698,2]
[323210107,1713817851601,-500.0,0.00013698,2]
[323210108,1713817851611,-500.0,0.00013698,2]
[323210109,1713817851620,-1339.69,0.00013698,2]
[323210110,1713817851630,-500.0,0.00013698,2]
[323210111,1713817851639,-500.0,0.00013698,2]
[323210112,1713817851649,-2687.48,0.00013698,2]
[323210113,1713817851658,-500.0,0.00013698,2]
[323210114,1713817851669,-500.0,0.00013698,2]
[323210115,1713817851678,-1917.71,0.00013698,2]
[323210116,1713817851689,-500.0,0.00013698,2]
[323210117,1713817851698,-501.64669273,0.00013698,2]
[323210118,1713817851709,-500.0,0.00013698,2]
[323210119,1713817851719,-500.0,0.00013698,2]
[323210120,1713817851729,-500.0,0.00013698,2]
[323210121,1713817851739,-522.69678894,0.00013698,2]
[323210122,1713817851748,-795.76,0.00013698,2]
[323210123,1713817851758,-500.0,0.00013698,2]
[323210124,1713817851770,-500.0,0.00013698,2]
[323210125,1713817851779,-500.0,0.00013698,2]
[323210126,1713817851790,-500.0,0.00013698,2]
[323210127,1713817851800,-1479.38,0.00013698,2]
[323210128,1713817851810,-1253.15,0.00013698,2]
[323210129,1713817851820,-755.1,0.00013698,2]
[323210130,1713817851831,-946.21,0.00013698,2]
[323210131,1713817851841,-500.0,0.00013698,2]
[323210132,1713817851854,-705.28,0.00013698,2]
[323210133,1713817851864,-500.0,0.00013698,2]
[323210134,1713817851873,-500.0,0.00013698,2]
[323210135,1713817851884,-500.0,0.00013698,2]
[323210136,1713817851895,-856.04,0.00013698,2]
[323210137,1713817851905,-500.0,0.00013698,2]
[323210138,1713817851915,-500.0,0.00013698,2]
[323210139,1713817851926,-1085.95,0.00013698,2]
[323210140,1713817851935,-1065.24,0.00013698,2]
[323210141,1713817851947,-586.95,0.00013698,2]
[323210142,1713817851956,-3909.96,0.00013698,2]
[323210143,1713817851965,-806.76,0.00013698,2]
[323210144,1713817851974,-500.0,0.00013698,2]
[323210145,1713817851984,-1318.24,0.00013698,2]
[323210146,1713817851996,-1254.05,0.00013698,2]
[323210147,1713817852006,-500.0,0.00013698,2]
[323210148,1713817852016,-500.0,0.00013698,2]
[323210149,1713817852026,-426.96217157,0.00013698,2]
[323210150,1713817852036,-500.0,0.00013698,2]
[323210151,1713817852046,-956.54,0.00013698,2]
[323210152,1713817852056,-1335.71,0.00013698,2]
[323210153,1713817852066,-1047.55,0.00013698,2]
[323210154,1713817852076,-1092.89,0.00013698,2]
[323210155,1713817852087,-500.0,0.00013698,2]
[323210156,1713817852098,-605.32,0.00013698,2]
[323210157,1713817852107,-500.0,0.00013698,2]
[323210158,1713817852117,-500.0,0.00013698,2]
[323210159,1713817852129,-500.0,0.00013698,2]
[323210160,1713817852139,-501.45288993,0.00013698,2]
[323210161,1713817852149,-155.53580564,0.00013698,2]
[323210162,1713817852159,-1295.55,0.00013698,2]
[323210163,1713817852169,-2415.41,0.00013698,2]
[323210164,1713817852179,-500.0,0.00013698,2]
[323210165,1713817852189,-633.15,0.00013698,2]
[323210166,1713817852199,-630.63,0.00013698,2]
[323210167,1713817852210,-1073.37,0.00013698,2]
[323210168,1713817852221,-2338.02,0.00013698,2]
[323210169,1713817852231,-500.0,0.00013698,2]
[323210170,1713817852243,-501.2745231,0.00013698,2]
[323210171,1713817852254,-723.42,0.00013698,2]
[323210172,1713817852264,-988.41,0.00013698,2]
[323210173,1713817852276,-500.0,0.00013698,2]
[323210174,1713817852285,-2293.72,0.00013698,2]
[323210175,1713817852295,-215.69760368,0.00013698,2]
[323210176,1713817852305,-500.0,0.00013698,2]
[323210177,1713817852315,-1045.44,0.00013698,2]
[323210178,1713817852325,-1265.46,0.00013698,2]
[323210179,1713817852335,-500.0,0.00013698,2]
[323210180,1713817852345,-561.76,0.00013698,2]
[323210181,1713817852355,-648.54,0.00013698,2]
[323210182,1713817852368,-500.0,0.00013698,2]
[323210183,1713817852377,-500.0,0.00013698,2]
[323210184,1713817852387,-500.0,0.00013698,2]
[323210185,1713817852397,-500.0,0.00013698,2]
[323210186,1713817852407,-209.810538,0.00013698,2]